bitfinex/quotes_SOLUSD_20241223
["timestamp","ask_amount","ask_price","bid_price","bid_amount"]
[1734943807154,0.163,184.42,184.39,13.53687916]
[1734943807362,0.163,184.42,184.39,12.72381169]
[1734943807564,0.163,184.42,184.38,12.72381169]
[1734943807954,0.163,184.42,184.39,12.72381169]
[1734943808671,0.163,184.42,184.38,12.72381169]
[1734943808959,0.163,184.42,184.37,12.72381169]
[1734943809783,12.72381169,184.39,184.31,1.596]
[1734943809959,12.72381169,184.39,184.33,12.72381169]
[1734943810163,12.72381169,184.39,184.32,12.72381169]
[1734943810655,12.72381169,184.38,184.31,12.72381169]
[1734943810852,12.72381169,184.37,184.31,12.72381169]
[1734943811058,12.72381169,184.38,184.31,12.72381169]
[1734943811368,12.72381169,184.36,184.29,12.72381169]
[1734943811554,12.72381169,184.34,184.27,12.72381169]
[1734943811757,12.72381169,184.35,184.28,12.72381169]
[1734943812269,12.72381169,184.31,184.24,12.72381169]
[1734943812448,12.72381169,184.3,184.23,12.72381169]
[1734943812846,4.0681,184.36,184.27,12.72381169]
[1734943813057,4.0681,184.36,184.19,2.35990749]
[1734943813350,12.72381169,184.34,184.27,12.72381169]
[1734943813570,12.72381169,184.34,184.26,12.72381169]
[1734943814069,12.72381169,184.34,184.27,12.72381169]
[1734943814265,12.72381169,184.35,184.27,12.72381169]
[1734943814766,6.5205,184.37,184.28,12.72381169]
[1734943814767,12.72381169,184.36,184.28,12.72381169]
[1734943815073,12.72381169,184.35,184.28,12.72381169]
[1734943815941,12.72381169,184.34,184.24,0.81379548]
[1734943816248,12.72381169,184.34,184.26,12.72381169]
[1734943816976,16.79231169,184.34,184.26,12.72381169]
[1734943817861,16.79231169,184.34,184.21,0.81393358]
[1734943817862,12.72381169,184.33,184.25,12.72381169]
[1734943818058,12.72381169,184.34,184.26,12.72381169]
[1734943818369,12.72381169,184.36,184.29,12.72381169]
[1734943818560,23.31221169,184.37,184.29,12.72381169]
[1734943819075,23.31221169,184.37,184.3,12.72381169]
[1734943819258,6.5205,184.37,184.31,12.72381169]
[1734943819470,19.24431169,184.37,184.3,12.72381169]
[1734943821073,19.24431169,184.37,184.29,12.72381169]
[1734943821971,6.5205,184.37,184.3,12.72381169]
[1734943822871,12.72381169,184.36,184.28,12.72381169]
[1734943823065,19.24431169,184.37,184.29,12.72381169]
[1734943823384,6.5205,184.37,184.3,12.72381169]
[1734943823748,6.5205,184.37,184.31,12.72381169]
[1734943823953,1.6405,184.4,184.33,12.72381169]
[1734943825061,12.72381169,184.39,184.31,12.72381169]
[1734943825462,12.72381169,184.4,184.32,12.72381169]
[1734943825689,12.72381169,184.4,184.33,12.72381169]
[1734943826193,12.72381169,184.36,184.28,14.34891169]
[1734943826894,12.72381169,184.36,184.29,12.72381169]
[1734943827060,12.72381169,184.37,184.3,12.72381169]
[1734943827258,12.72381169,184.37,184.29,0.81376346]
[1734943827259,14.24971169,184.38,184.31,12.72381169]
[1734943827464,1.5259,184.38,184.32,12.72381169]
[1734943828185,14.24971169,184.38,184.31,12.72381169]
[1734943829606,14.24971169,184.38,184.28,1.6251]
[1734943829607,12.72381169,184.41,184.34,12.72381169]
[1734943829898,12.72381169,184.39,184.32,12.72381169]
[1734943830060,12.72381169,184.38,184.31,12.72381169]
[1734943830269,12.72381169,184.39,184.32,12.72381169]
[1734943830780,12.72381169,184.38,184.31,12.72381169]
[1734943831457,12.72381169,184.39,184.32,12.72381169]
[1734943834093,12.72381169,184.36,184.28,12.72381169]
[1734943834263,12.72381169,184.3,184.21,8.44227934]
[1734943834463,12.72381169,184.3,184.23,12.72381169]
[1734943834659,12.72381169,184.33,184.26,12.72381169]
[1734943834866,12.72381169,184.34,184.27,12.72381169]
[1734943835289,20.60671169,184.35,184.28,12.72381169]
[1734943835478,7.8829,184.35,184.29,12.72381169]
[1734943835665,6.3252,184.35,184.29,12.72381169]
[1734943835866,12.72381169,184.37,184.3,12.72381169]
[1734943836180,8.14628733,184.37,184.3,8.14628733]
[1734943836370,8.14628733,184.38,184.31,8.14628733]
[1734943836787,9.77608733,184.39,184.31,8.14628733]
[1734943837880,8.14628733,184.38,184.31,8.14628733]
[1734943839804,8.14628733,184.37,184.28,20.0]
[1734943839977,8.14628733,184.37,184.3,8.14628733]
[1734943840486,8.14628733,184.36,184.29,8.14628733]
[1734943841008,8.14628733,184.35,184.28,28.14628733]
[1734943841177,8.14628733,184.34,184.27,0.81368744]
[1734943841495,8.14628733,184.34,184.21,8.44227934]
[1734943841496,5.6974,184.39,184.22,0.8137494]
[1734943841697,1.6298,184.39,184.26,1.6196]
[1734943841856,1.6298,184.39,184.27,0.81359649]
[1734943842063,1.6298,184.39,184.32,8.14628733]
[1734943842788,9.77608733,184.39,184.32,8.14628733]
[1734943843572,9.77608733,184.39,184.27,0.81359649]
[1734943843788,8.14628733,184.37,184.29,8.14628733]
[1734943844080,8.14628733,184.35,184.28,8.14628733]
[1734943844787,8.14628733,184.34,184.25,0.81373476]
[1734943844979,8.14628733,184.34,184.21,1.6309]
[1734943844980,8.14628733,184.34,184.26,8.14628733]
[1734943845559,8.14628733,184.34,184.22,20.81385415]
[1734943845765,8.14628733,184.34,184.26,8.14628733]
[1734943846170,8.14628733,184.33,184.22,20.81385415]
[1734943846381,8.14628733,184.34,184.26,8.14628733]
[1734943846770,8.14628733,184.34,184.27,8.14628733]
[1734943847002,8.14628733,184.33,184.25,8.14628733]
[1734943847297,6.0307,184.32,184.25,8.14628733]
[1734943847502,6.0307,184.32,184.26,8.14628733]
[1734943847694,6.0307,184.32,184.27,8.14628733]
[1734943849678,6.0307,184.32,184.2,0.8138137]
[1734943849679,1.643,184.31,184.2,0.8138137]
[1734943849984,8.14628733,184.26,184.19,8.14628733]
[1734943850184,8.14628733,184.26,184.17,8.44227934]
[1734943850400,8.14628733,184.26,184.19,8.14628733]
[1734943850593,8.14628733,184.26,184.18,8.14628733]
[1734943850993,8.14628733,184.24,184.12,1.5007]
[1734943851196,8.14628733,184.23,184.15,8.14628733]
[1734943851389,8.14628733,184.26,184.19,8.14628733]
[1734943851581,8.14628733,184.25,184.18,8.14628733]
[1734943852101,8.14628733,184.26,184.19,8.14628733]
[1734943852289,16.81304019,184.28,184.2,12.74304019]
[1734943852494,12.74304019,184.27,184.19,12.74304019]
[1734943853196,12.74304019,184.24,184.17,12.74304019]
[1734943853383,12.74304019,184.24,184.16,12.74304019]
[1734943853706,12.74304019,184.24,184.17,12.74304019]
[1734943853918,16.81354019,184.25,184.18,12.74304019]
[1734943854382,12.74304019,184.27,184.19,12.74304019]
[1734943855708,12.74304019,184.27,184.2,12.74304019]
[1734943856011,12.74304019,184.27,184.19,12.74304019]
[1734943856885,19.01554019,184.3,184.23,12.74304019]
[1734943857205,6.2725,184.3,184.25,12.74304019]
[1734943857411,6.2725,184.3,184.27,12.74304019]
[1734943857709,1.643,184.31,184.27,12.74304019]
[1734943858009,1.643,184.31,184.26,12.74304019]
[1734943858197,12.74304019,184.3,184.22,12.74304019]
[1734943858588,1.643,184.31,184.22,12.74304019]
[1734943858589,12.74304019,184.29,184.22,12.74304019]
[1734943858784,12.74304019,184.28,184.21,12.74304019]
[1734943862311,14.38604019,184.31,184.24,12.74304019]
[1734943862912,12.74304019,184.29,184.22,12.74304019]
[1734943863220,12.74304019,184.27,184.2,12.74304019]
[1734943863694,12.74304019,184.28,184.2,12.74304019]
[1734943864197,12.74304019,184.3,184.23,12.74304019]
[1734943864614,12.74304019,184.3,184.22,12.74304019]
[1734943865288,14.38604019,184.31,184.23,12.74304019]
[1734943865510,14.38604019,184.31,184.26,12.74304019]
[1734943865511,1.643,184.31,184.26,12.74304019]
[1734943866018,1.643,184.31,184.25,12.74304019]
[1734943866406,1.643,184.31,184.26,12.74304019]
[1734943867912,1.643,184.31,184.24,12.74304019]
[1734943868102,14.38604019,184.31,184.23,12.74304019]
[1734943868414,14.38604019,184.31,184.24,12.74304019]
[1734943869300,12.74304019,184.28,184.2,12.74304019]
[1734943869609,12.74304019,184.28,184.14,21.18531953]
[1734943869610,12.74304019,184.24,184.17,12.74304019]
[1734943870497,12.74304019,184.23,184.16,12.74304019]
[1734943870813,12.74304019,184.23,184.1,12.74304019]
[1734943870814,12.74304019,184.18,184.1,12.74304019]
[1734943871324,12.74304019,184.19,184.12,12.74304019]
[1734943872003,5.7121,184.22,184.14,12.74304019]
[1734943872004,18.45514019,184.22,184.14,12.74304019]
[1734943872401,14.38384019,184.22,184.14,12.74304019]
[1734943872605,14.38384019,184.22,184.15,12.74304019]
[1734943872912,14.38384019,184.22,184.13,12.74304019]
[1734943872913,12.74304019,184.21,184.13,12.74304019]
[1734943874905,12.74304019,184.21,184.14,12.74304019]
[1734943876016,12.74304019,184.2,184.13,12.74304019]
[1734943876312,12.74304019,184.18,184.11,12.74304019]
[1734943876898,12.74304019,184.17,184.1,12.74304019]
[1734943877203,12.74304019,184.17,184.08,12.74304019]
[1734943877204,12.74304019,184.16,184.08,12.74304019]
[1734943877400,6.0351,184.17,184.07,12.74304019]
[1734943877602,12.74304019,184.12,184.05,12.74304019]
[1734943878715,12.74304019,184.11,184.04,12.74304019]
[1734943878922,12.74304019,184.1,184.03,12.74304019]
[1734943879606,12.74304019,184.09,184.02,12.74304019]
[1734943881119,18.95034019,184.08,184.01,12.74304019]
[1734943881300,12.74304019,184.07,184.0,12.74304019]
[1734943881618,12.74304019,184.06,184.0,12.74304019]
[1734943882148,6.2073,184.08,184.04,12.74304019]
[1734943882295,1.592,184.13,184.07,12.74304019]
[1734943882296,6.1203,184.12,184.07,12.74304019]
[1734943883319,18.86334019,184.12,184.05,12.74304019]
[1734943883812,18.86334019,184.12,184.01,24.71718894]
[1734943883813,6.1203,184.12,184.06,12.74304019]
[1734943884121,18.96944019,184.16,184.09,12.74304019]
[1734943884420,12.74304019,184.14,184.07,12.74304019]
[1734943885721,12.74304019,184.15,184.08,12.74304019]
[1734943886024,6.2264,184.16,184.11,12.74304019]
[1734943886699,6.4323,184.2,184.13,12.74304019]
[1734943886907,6.4323,184.2,184.15,12.74304019]
[1734943887090,12.74304019,184.19,184.12,12.74304019]
[1734943887294,12.74304019,184.18,184.1,12.74304019]
[1734943887927,12.74304019,184.18,184.11,12.74304019]
[1734943888594,12.74304019,184.18,184.07,23.902374]
[1734943888820,12.74304019,184.18,184.11,12.74304019]
[1734943889109,19.17534019,184.2,184.13,12.74304019]
[1734943890320,12.74304019,184.19,184.12,12.74304019]
[1734943891824,12.74304019,184.18,184.11,12.74304019]
[1734943892826,12.74304019,184.18,184.1,12.74304019]
[1734943894312,12.74304019,184.18,184.11,12.74304019]
[1734943894538,12.74304019,184.19,184.12,12.74304019]
[1734943895073,12.74304019,184.19,184.11,12.74304019]
[1734943895196,12.74304019,184.15,184.07,12.74304019]
[1734943895710,12.74304019,184.15,184.08,12.74304019]
[1734943896023,6.4323,184.2,184.08,12.74304019]
[1734943896328,12.74304019,184.16,184.08,12.74304019]
[1734943896699,12.74304019,184.17,184.09,12.74304019]
[1734943896904,12.74304019,184.17,184.1,12.74304019]
[1734943897114,12.74304019,184.17,184.09,12.74304019]
[1734943897318,12.74304019,184.16,184.09,12.74304019]
[1734943897717,12.74304019,184.17,184.09,12.74304019]
[1734943898325,12.74304019,184.16,184.09,12.74304019]
[1734943899449,12.74304019,184.17,184.09,12.74304019]
[1734943901340,12.74304019,184.17,184.1,12.74304019]
[1734943902566,12.74304019,184.16,184.09,12.74304019]
[1734943903958,12.74304019,184.16,184.08,12.74304019]
[1734943904128,12.74304019,184.15,184.07,12.74304019]
[1734943904551,12.74304019,184.15,184.04,23.902374]
[1734943904735,12.74304019,184.16,184.09,12.74304019]
[1734943907279,12.74304019,184.16,184.08,12.74304019]
[1734943907565,12.74304019,184.15,184.08,12.74304019]
[1734943907735,12.74304019,184.14,184.07,12.74304019]
[1734943907937,12.74304019,184.13,184.06,12.74304019]
[1734943908577,12.74304019,184.14,184.07,12.74304019]
[1734943909577,12.74304019,184.13,184.06,12.74304019]
[1734943910767,12.74304019,184.14,184.07,12.74304019]
[1734943911072,14.34284019,184.15,184.07,12.74304019]
[1734943912077,12.74304019,184.14,184.07,12.74304019]
[1734943912453,14.34284019,184.15,184.07,12.74304019]
[1734943912655,1.5998,184.15,184.09,12.74304019]
[1734943913542,1.5998,184.15,184.05,0.81464802]
[1734943913543,1.5998,184.15,184.1,12.74304019]
[1734943913768,1.5998,184.15,184.09,12.74304019]
[1734943914978,12.74304019,184.17,184.09,12.74304019]
[1734943915287,12.74304019,184.18,184.1,12.74304019]
[1734943915581,12.74304019,184.18,184.12,12.74304019]
[1734943915747,20.74964019,184.2,184.12,12.74304019]
[1734943916073,4.071,184.23,184.12,12.74304019]
[1734943916290,12.74304019,184.2,184.12,12.74304019]
[1734943917487,12.74304019,184.22,184.14,12.74304019]
[1734943917693,12.74304019,184.22,184.15,12.74304019]
[1734943918484,12.74304019,184.22,184.14,12.74304019]
[1734943918890,12.74304019,184.2,184.12,12.74304019]
[1734943919080,12.74304019,184.17,184.09,12.74304019]
[1734943919390,12.74304019,184.16,184.09,12.74304019]
[1734943919746,12.74304019,184.15,184.08,12.74304019]
[1734943920186,12.74304019,184.15,184.05,12.74304019]
[1734943920187,12.74304019,184.13,184.05,12.74304019]
[1734943920357,12.74304019,184.11,184.03,14.36394019]
[1734943920962,12.74304019,184.11,184.04,12.74304019]
[1734943921159,12.74304019,184.12,184.05,12.74304019]
[1734943921571,12.74304019,184.12,184.04,12.74304019]
[1734943922793,12.74304019,184.11,184.04,12.74304019]
[1734943925207,6.5144,184.15,184.09,12.74304019]
[1734943925489,1.5156,184.17,184.11,12.74304019]
[1734943925656,1.5156,184.17,184.12,12.74304019]
[1734943925856,1.5156,184.17,184.11,12.74304019]
[1734943926669,1.5156,184.17,184.12,12.74304019]
[1734943927196,6.4767,184.2,184.14,12.74304019]
[1734943927362,6.4767,184.2,184.15,12.74304019]
[1734943928364,12.74304019,184.24,184.17,12.74304019]
[1734943928773,12.74304019,184.24,184.16,12.74304019]
[1734943929696,12.74304019,184.24,184.17,12.74304019]
[1734943930360,6.5598,184.25,184.19,12.74304019]
[1734943930562,6.5598,184.25,184.2,12.74304019]
[1734943930761,12.74304019,184.28,184.21,12.74304019]
[1734943931587,19.22434019,184.3,184.23,12.74304019]
[1734943931785,12.74304019,184.28,184.15,2.35074276]
[1734943931963,12.74304019,184.27,184.19,12.74304019]
[1734943932500,12.74304019,184.24,184.13,7.44801227]
[1734943932659,12.74304019,184.23,184.13,7.44801227]
[1734943932862,12.74304019,184.23,184.16,12.74304019]
[1734943933101,12.74304019,184.24,184.17,12.74304019]
[1734943934207,12.74304019,184.22,184.14,12.74304019]
[1734943934492,12.74304019,184.2,184.12,12.74304019]
[1734943935177,6.1412,184.21,184.15,12.74304019]
[1734943936073,6.1412,184.21,184.11,1.6194]
[1734943936074,6.1412,184.21,184.16,12.74304019]
[1734943936989,18.88424019,184.21,184.14,12.74304019]
[1734943937358,10.1906,184.27,184.15,0.81440437]
[1734943937555,12.74304019,184.26,184.18,12.74304019]
[1734943937759,6.1203,184.27,184.21,12.74304019]
[1734943937973,18.86334019,184.31,184.24,12.74304019]
[1734943938260,6.1203,184.31,184.24,12.74304019]
[1734943938460,6.1203,184.31,184.25,12.74304019]
[1734943938662,6.1203,184.31,184.27,12.74304019]
[1734943938860,18.95894019,184.36,184.28,12.74304019]
[1734943939364,12.74304019,184.34,184.27,12.74304019]
[1734943940485,12.74304019,184.35,184.28,12.74304019]
[1734943941266,18.95894019,184.36,184.29,12.74304019]
[1734943941492,6.2159,184.36,184.29,12.74304019]
[1734943941692,12.74304019,184.35,184.28,12.74304019]
[1734943941876,18.95894019,184.36,184.29,12.74304019]
[1734943942395,12.74304019,184.35,184.27,12.74304019]
[1734943942895,12.74304019,184.35,184.28,12.74304019]
[1734943943271,12.74304019,184.35,184.27,12.74304019]
[1734943943697,12.74304019,184.35,184.28,12.74304019]
[1734943943990,12.74304019,184.35,184.24,0.81378814]
[1734943944192,4.0685,184.35,184.25,12.74304019]
[1734943944376,12.74304019,184.33,184.25,12.74304019]
[1734943945603,4.0685,184.35,184.25,12.74304019]
[1734943945604,12.74304019,184.32,184.25,12.74304019]
[1734943946305,4.0685,184.35,184.25,12.74304019]
[1734943946519,12.74304019,184.33,184.25,12.74304019]
[1734943946794,12.74304019,184.32,184.25,12.74304019]
[1734943946970,12.74304019,184.32,184.24,12.74304019]
[1734943947983,12.74304019,184.29,184.22,12.74304019]
[1734943948189,12.74304019,184.29,184.19,0.81401513]
[1734943948190,12.74304019,184.28,184.21,12.74304019]
[1734943948485,19.12584019,184.26,184.19,12.74304019]
[1734943949097,12.74304019,184.25,184.12,0.81425271]
[1734943949297,12.74304019,184.25,184.17,12.74304019]
[1734943949603,12.74304019,184.25,184.18,12.74304019]
[1734943951086,6.3828,184.26,184.2,12.74304019]
[1734943951281,6.3828,184.26,184.16,23.776884]
[1734943951282,18.88694019,184.31,184.24,12.74304019]
[1734943951694,6.1439,184.31,184.24,12.74304019]
[1734943952204,18.88694019,184.31,184.24,12.74304019]
[1734943953019,6.1439,184.31,184.26,12.74304019]
[1734943953301,18.88694019,184.31,184.24,12.74304019]
[1734943953483,12.74304019,184.3,184.22,12.74304019]
[1734943956309,12.74304019,184.29,184.22,12.74304019]
[1734943956710,12.74304019,184.3,184.22,12.74304019]
[1734943957313,12.74304019,184.29,184.22,12.74304019]
[1734943957524,12.74304019,184.28,184.2,12.74304019]
[1734943957981,12.74304019,184.26,184.15,0.81417817]
[1734943958308,12.74304019,184.24,184.16,12.74304019]
[1734943958988,12.74304019,184.25,184.17,12.74304019]
[1734943960521,24.0703,184.26,184.17,12.74304019]
[1734943960808,36.81334019,184.26,184.18,12.74304019]
[1734943961386,36.81334019,184.26,184.19,12.74304019]
[1734943961884,36.81334019,184.26,184.18,12.74304019]
[1734943963712,16.81334019,184.26,184.18,12.74304019]
[1734943964012,12.74304019,184.28,184.2,12.74304019]
[1734943964508,12.74304019,184.28,184.21,12.74304019]
[1734943964695,12.74304019,184.3,184.23,12.74304019]
[1734943965406,6.1439,184.31,184.24,12.74304019]
[1734943965407,18.88694019,184.31,184.24,12.74304019]
[1734943965618,6.1439,184.31,184.24,12.74304019]
[1734943965913,18.88694019,184.31,184.24,12.74304019]
[1734943966302,12.74304019,184.29,184.22,12.74304019]
[1734943966614,12.74304019,184.28,184.2,12.74304019]
[1734943967418,12.74304019,184.27,184.2,12.74304019]
[1734943968406,12.74304019,184.28,184.2,12.74304019]
[1734943971025,12.74304019,184.29,184.21,12.74304019]
[1734943972123,12.74304019,184.29,184.22,12.74304019]
[1734943973626,10.2132,184.31,184.24,12.74304019]
[1734943973627,6.1439,184.31,184.24,12.74304019]
[1734943973804,1.5248,184.32,184.26,12.74304019]
[1734943974024,12.74304019,184.34,184.27,12.74304019]
[1734943974827,19.29474019,184.35,184.27,12.74304019]
[1734943975035,19.29474019,184.35,184.28,12.74304019]
[1734943976030,12.74304019,184.32,184.25,12.74304019]
[1734943976227,12.74304019,184.31,184.24,12.74304019]
[1734943976407,12.74304019,184.3,184.23,12.74304019]
[1734943978435,12.74304019,184.3,184.14,19.35339896]
[1734943978436,20.0,184.21,184.12,16.88455868]
[1734943978661,12.74304019,184.14,184.12,16.88455868]
[1734943978819,18.96504019,184.14,184.12,16.88455868]
[1734943979833,18.96504019,184.14,184.04,12.74304019]
[1734943980035,12.74304019,184.12,184.05,30.0]
[1734943980239,12.74304019,184.12,184.04,20.42289578]
[1734943980240,0.81372753,184.11,184.04,20.42289578]
[1734943980431,20.42289578,184.12,184.04,20.42289578]
[1734943981036,0.81372753,184.11,184.04,20.42289578]
[1734943981713,26.64489578,184.14,184.06,20.42289578]
[1734943982113,20.42289578,184.14,184.06,20.42289578]
[1734943982321,7.46872753,184.18,184.12,20.42289578]
[1734943982535,6.655,184.18,184.12,20.42289578]
[1734943982713,27.07789578,184.18,184.1,20.42289578]
[1734943983113,0.81372753,184.17,184.1,20.42289578]
[1734943984639,27.07789578,184.18,184.1,20.42289578]
[1734943985643,0.81372753,184.17,184.1,20.42289578]
[1734943987616,27.07789578,184.18,184.1,20.42289578]
[1734943987831,0.81372753,184.17,184.1,20.42289578]
[1734943989145,20.42289578,184.14,184.06,20.42289578]
[1734943989336,0.81372753,184.13,184.06,20.42289578]
[1734943989642,20.42289578,184.12,184.04,20.42289578]
[1734943989813,20.42289578,184.12,184.05,20.42289578]
[1734943990014,20.42289578,184.15,184.07,20.42289578]
[1734943991151,20.42289578,184.15,184.08,20.42289578]
[1734943992146,0.81372753,184.14,184.08,20.42289578]
[1734943992448,0.81372753,184.14,184.07,20.42289578]
[1734943993244,20.42289578,184.15,184.07,20.42289578]
[1734943993434,20.42289578,184.15,184.08,20.42289578]
[1734943993746,0.81372753,184.14,184.08,20.42289578]
[1734943994543,20.42289578,184.13,184.06,20.42289578]
[1734943994743,21.23662331,184.14,184.07,20.42289578]
[1734943994951,20.42289578,184.17,184.09,20.42289578]
[1734943995123,27.89162331,184.18,184.11,20.42289578]
[1734943995323,20.42289578,184.17,184.1,20.42289578]
[1734943997643,21.23662331,184.17,184.1,20.42289578]
[1734943998226,20.42289578,184.17,184.1,20.42289578]
[1734943998420,21.23662331,184.17,184.1,20.42289578]
[1734943998762,21.23662331,184.17,184.09,20.42289578]
[1734943999048,20.42289578,184.16,184.09,20.42289578]
[1734943999758,20.42289578,184.16,183.99,22.02987934]
[1734943999759,20.42289578,184.11,183.99,22.02987934]
[1734943999927,0.81372753,184.15,184.04,20.42289578]
[1734944000252,12.76200591,184.13,184.06,12.76200591]
[1734944002520,0.81372753,184.12,184.04,12.76200591]
[1734944002723,12.76200591,184.11,184.04,12.76200591]
[1734944002964,0.81372753,184.1,184.02,12.76200591]
[1734944003137,12.76200591,184.09,184.02,12.76200591]
[1734944003330,12.76200591,184.09,184.0,12.76200591]
[1734944003331,0.81372753,184.08,184.0,12.76200591]
[1734944003536,12.76200591,184.07,184.0,12.76200591]
[1734944003747,19.92943344,184.09,184.0,12.76200591]
[1734944003971,6.3537,184.09,184.02,12.76200591]
[1734944004472,6.3537,184.09,184.03,12.76200591]
[1734944005250,6.3537,184.09,184.04,12.76200591]
[1734944006855,12.76200591,184.13,184.05,12.76200591]
[1734944007069,13.57573344,184.13,184.05,12.76200591]
[1734944007276,12.76200591,184.13,184.06,23.776884]
[1734944007443,13.57573344,184.13,184.06,23.776884]
[1734944009466,12.76200591,184.13,184.06,23.776884]
[1734944010072,13.57573344,184.13,184.06,23.776884]
[1734944010244,12.76200591,184.13,184.06,23.776884]
[1734944010577,13.57573344,184.13,184.06,23.776884]
[1734944011060,12.76200591,184.13,184.06,23.776884]
[1734944011662,13.57573344,184.13,184.06,23.776884]
[1734944012170,12.76200591,184.13,184.06,23.776884]
[1734944014376,0.81372753,184.12,184.06,23.776884]
[1734944014667,0.81372753,184.12,184.05,12.76200591]
[1734944014873,12.76200591,184.11,184.03,12.76200591]
[1734944015074,12.76200591,184.09,184.03,12.76200591]
[1734944015248,0.81372753,184.08,184.01,12.76200591]
[1734944017676,0.81372753,184.08,183.95,2.17033105]
[1734944017677,12.76200591,184.07,183.99,12.76200591]
[1734944017975,12.76200591,184.05,183.98,12.76200591]
[1734944018167,0.81372753,184.04,183.98,12.76200591]
[1734944019072,0.81372753,184.05,183.98,12.76200591]
[1734944019556,0.81372753,184.05,183.99,12.76200591]
[1734944020178,0.81372753,184.05,183.98,12.76200591]
[1734944020378,20.84460591,184.06,183.99,12.76200591]
[1734944020546,0.81372753,184.05,183.99,12.76200591]
[1734944021674,20.84460591,184.06,183.99,12.76200591]
[1734944021872,0.81372753,184.05,183.99,12.76200591]
[1734944023957,8.0826,184.06,184.0,23.776884]
[1734944024284,20.75090591,184.11,184.04,23.776884]
[1734944025782,0.81372753,184.1,184.04,36.53888991]
[1734944027367,0.81372753,184.1,184.04,12.76200591]
[1734944027570,0.81372753,184.1,184.02,12.76200591]
[1734944027779,12.76200591,184.09,184.02,12.76200591]
[1734944028081,0.81372753,184.08,184.02,12.76200591]
[1734944028657,12.76200591,184.07,184.0,12.76200591]
[1734944028969,13.57573344,184.06,183.98,12.76200591]
[1734944029177,13.57573344,184.06,183.93,0.81510464]
[1734944029178,0.81372753,184.06,183.99,12.76200591]
[1734944031272,12.76200591,184.07,184.0,23.776884]
[1734944031474,0.81372753,184.06,184.0,23.776884]
[1734944032270,12.76200591,184.07,184.0,23.776884]
[1734944032579,4.074,184.09,184.0,23.776884]
[1734944032580,12.76200591,184.09,184.01,12.76200591]
[1734944032962,8.80262753,184.11,184.05,12.76200591]
[1734944033168,7.9889,184.11,184.05,12.76200591]
[1734944033789,7.9889,184.11,184.04,23.776884]
[1734944033790,7.9889,184.11,184.04,36.53888991]
[1734944034086,0.81372753,184.1,184.04,36.53888991]
[1734944034390,13.57573344,184.1,184.03,12.76200591]
[1734944034567,12.76200591,184.09,184.01,36.53888991]
[1734944034893,12.76200591,184.09,184.01,12.76200591]
[1734944035086,0.81372753,184.08,184.01,12.76200591]
[1734944035591,12.76200591,184.09,184.01,12.76200591]
[1734944035890,0.81372753,184.08,184.01,12.76200591]
[1734944036968,12.76200591,184.07,184.01,12.76200591]
[1734944037171,13.57573344,184.09,184.01,12.76200591]
[1734944037990,0.81372753,184.1,184.03,12.76200591]
[1734944039306,0.81372753,184.1,184.04,12.76200591]
[1734944039477,7.9889,184.11,184.04,12.76200591]
[1734944040287,0.81372753,184.1,184.03,12.76200591]
[1734944040496,12.76200591,184.09,184.02,23.776884]
[1734944040786,13.57573344,184.08,184.01,12.76200591]
[1734944040988,13.57573344,184.08,184.0,12.76200591]
[1734944043474,13.57573344,184.08,184.01,23.776884]
[1734944044678,13.57573344,184.08,184.0,12.76200591]
[1734944045085,4.0745,184.07,184.0,12.76200591]
[1734944045295,0.81372753,184.06,184.0,12.76200591]
[1734944045789,12.76200591,184.02,183.94,2.17327254]
[1734944046120,12.76200591,183.98,183.92,8.44227934]
[1734944046287,0.81372753,183.97,183.92,8.44227934]
[1734944046902,20.0,183.94,183.92,8.44227934]
[1734944047122,20.0,183.94,183.88,12.76200591]
[1734944047473,20.0,183.94,183.87,12.76200591]
[1734944047707,20.0,183.94,183.89,12.76200591]
[1734944047871,20.0,183.94,183.87,12.76200591]
[1734944048074,12.76200591,183.93,183.85,12.76200591]
[1734944048270,12.76200591,183.91,183.84,12.76200591]
[1734944048507,12.76200591,183.87,183.81,0.6715179]
[1734944048818,6.5362,183.89,183.83,12.76200591]
[1734944049055,0.81372753,183.93,183.86,12.76200591]
[1734944049228,7.34992753,183.94,183.87,12.76200591]
[1734944049735,20.11193344,183.94,183.87,12.76200591]
[1734944049938,20.11193344,183.94,183.86,12.76200591]
[1734944050245,12.76200591,183.92,183.85,12.76200591]
[1734944050417,0.81372753,183.91,183.84,12.76200591]
[1734944050623,12.76200591,183.9,183.83,12.76200591]
[1734944050927,12.76200591,183.92,183.85,12.76200591]
[1734944051237,12.76200591,183.9,183.83,12.76200591]
[1734944051413,0.81372753,183.89,183.81,13.43352381]
[1734944051826,12.76200591,183.86,183.81,0.6715179]
[1734944052143,13.57573344,183.86,183.81,0.6715179]
[1734944053012,0.81372753,183.86,183.81,0.6715179]
[1734944053206,6.92692753,183.87,183.81,0.6715179]
[1734944054906,6.1132,183.87,183.81,0.6715179]
[1734944055233,2.45522753,183.88,183.82,36.53888991]
[1734944055234,1.6415,183.88,183.82,36.53888991]
[1734944055735,6.234,183.91,183.84,12.76200591]